bitfinex-derivatives/quotes_ETHF0:USTF0_20250421
["timestamp","ask_amount","ask_price","bid_price","bid_amount"]
[1745237046159,2.07477,1628.4,1628.3,2.99765]
[1745237046363,1.22814,1628.5,1628.4,1.22814]
[1745237046551,1.22814,1628.5,1628.4,2.99754]
[1745237046754,10.27707,1628.6,1628.5,1.22809]
[1745237046961,1.22809,1628.5,1628.4,1.22811]
[1745237047149,3.74959,1628.5,1628.4,1.22811]
[1745237049662,1.2282,1628.4,1628.3,1.22818]
[1745237049864,1.7727,1628.4,1628.3,1.22818]
[1745237050255,3.00087,1628.4,1628.3,1.22818]
[1745237050962,1.7727,1628.4,1628.3,1.22818]
[1745237051659,3.00087,1628.4,1628.3,1.22818]
[1745237051854,1.7727,1628.4,1628.3,1.22818]
[1745237052056,0.8433,1628.5,1628.4,1.22817]
[1745237052361,93.689,1629.1,1628.4,1.22817]
[1745237052362,4.43552,1629.0,1628.9,1.22779]
[1745237052561,6.7146,1629.0,1628.9,1.22779]
[1745237052864,6.7146,1629.0,1628.9,42.02779]
[1745237053262,6.146,1629.0,1628.9,42.02779]
[1745237053464,6.146,1629.0,1628.9,45.23559]
[1745237054166,0.8608,1629.1,1629.0,1.22772]
[1745237054360,13.91823225,1629.2,1629.1,1.22764]
[1745237054868,12.17353225,1629.2,1629.1,1.22764]
[1745237056061,1.22764,1629.1,1629.0,0.00922026]
[1745237056269,2.97234,1629.1,1629.0,0.00922026]
[1745237057070,2.97234,1629.1,1629.0,1.23694026]
[1745237057269,9.11834,1629.1,1629.0,1.23694026]
[1745237057664,7.8907,1629.1,1629.0,1.23694026]
[1745237058670,9.11834,1629.1,1629.0,1.23694026]
[1745237058966,7.8907,1629.1,1629.0,1.23694026]
[1745237059271,9.11834,1629.1,1629.0,1.23694026]
[1745237059473,7.8907,1629.1,1629.0,1.23694026]
[1745237059970,6.146,1629.1,1629.0,1.23694026]
[1745237060170,12.09477,1629.3,1629.2,1.22757]
[1745237061267,18.24072,1629.3,1629.2,1.22757]
[1745237061665,17.01323,1629.3,1629.2,1.22757]
[1745237061972,18.24072,1629.3,1629.2,1.22757]
[1745237062165,17.01323,1629.3,1629.2,1.22757]
[1745237062472,6.146,1629.3,1629.2,1.22757]
[1745237063172,7.37349,1629.3,1629.2,1.22757]
[1745237063471,7.8497,1629.3,1629.1,0.8904]
[1745237063664,9.07726,1629.3,1629.2,1.22757]
[1745237063970,1.22764,1629.1,1629.0,3.21702026]
[1745237064471,1.22764,1629.1,1629.0,4.44474026]
[1745237064658,3.75564,1629.1,1629.0,4.44474026]
[1745237065061,9.90164,1629.1,1629.0,4.44474026]
[1745237066772,9.90164,1629.1,1629.0,0.00922026]
[1745237067675,13.10944,1629.1,1629.0,0.00922026]
[1745237068374,11.96344,1629.1,1629.0,0.00922026]
[1745237069166,18.10944,1629.1,1629.0,0.00922026]
[1745237069573,13.10944,1629.1,1629.0,0.00922026]
[1745237072073,6.96344,1629.1,1629.0,0.00922026]
[1745237073176,13.10944,1629.1,1629.0,0.00922026]
[1745237073372,17.22567,1629.1,1629.0,0.00922026]
[1745237073572,22.22567,1629.1,1629.0,0.00922026]
[1745237074275,1.22817,1628.4,1628.3,3.2078]
[1745237074570,1.2283,1628.3,1628.1,5.6825]
[1745237074776,1.22832,1628.2,1628.1,2.4747]
[1745237075079,1.22846,1628.1,1627.9,3.2078]
[1745237075267,1.22846,1628.1,1628.0,40.8]
[1745237075781,1.22807,1628.6,1628.2,3.07081]
[1745237075971,1.2281,1628.5,1628.4,1.22813]
[1745237076172,1.2281,1628.5,1628.4,9.09123]
[1745237077081,1.2281,1628.5,1628.4,2.94523]
[1745237079484,1.2281,1628.5,1628.4,1.7171]
[1745237079676,1.22817,1628.4,1628.3,2.04995]
[1745237080286,1.22817,1628.4,1628.3,0.8217]
[1745237080783,3.00527,1628.4,1628.3,2.525]
[1745237081584,1.22832,1628.2,1628.1,4.43613]
[1745237081783,1.22832,1628.2,1628.1,6.92053]
[1745237082377,3.82741,1628.3,1628.2,1.22832]
[1745237082577,3.82741,1628.3,1628.2,1.6306]
[1745237082982,1.22832,1628.2,1628.1,2.0822]
[1745237083182,2.94312,1628.2,1628.1,2.0822]
[1745237083384,2.94312,1628.2,1628.1,3.7128]
[1745237084992,2.11261,1628.3,1628.2,1.22832]
[1745237085185,3.73171,1628.3,1628.2,2.94162]
[1745237085392,0.8843,1628.3,1628.2,2.94162]
[1745237085591,7.00826,1628.5,1628.4,1.22817]
[1745237085891,1.22817,1628.4,1628.3,2.94147]
[1745237086092,1.22828,1628.3,1628.2,1.22826]
[1745237086286,1.22828,1628.3,1628.2,2.94156]
[1745237086491,1.22828,1628.3,1628.2,1.22826]
[1745237086693,2.03478,1628.3,1628.2,1.22826]
[1745237086891,1.22832,1628.2,1628.1,3.82304]
[1745237087094,2.84742,1628.2,1628.1,3.82304]
[1745237087393,1.6191,1628.2,1628.1,3.82304]
[1745237087696,2.0348,1628.3,1628.2,1.22832]
[1745237087895,2.0348,1628.3,1628.2,2.84262]
[1745237088898,2.97084,1628.4,1628.3,1.22825]
[1745237089097,2.97084,1628.4,1628.3,2.84255]
[1745237093302,6.25985,1628.5,1628.4,1.22817]
[1745237093504,6.25985,1628.5,1628.4,3.83167]
[1745237094503,2.09885,1628.5,1628.4,3.83167]
[1745237094699,4.43587,1628.6,1628.5,1.22809]
[1745237094898,4.43587,1628.6,1628.5,3.00919]
[1745237095594,4.43587,1628.6,1628.5,3.84899]
[1745237098411,12.39445,1628.9,1628.8,2.90587]
[1745237099402,6.146,1628.9,1628.8,7.90587]
[1745237099608,6.146,1628.9,1628.8,2.90587]
[1745237100104,6.146,1628.9,1628.8,43.70587]
[1745237100310,3.2078,1629.0,1628.9,1.22779]
[1745237100613,3.2078,1629.0,1628.9,2.95289]
[1745237100915,3.2078,1629.0,1628.9,43.75289]
[1745237101211,4.43552,1629.0,1628.9,40.8]
[1745237101401,6.04632,1629.0,1628.9,40.8]
[1745237102698,10.22232,1629.0,1628.9,40.8]
[1745237105006,1.22787,1628.8,1628.7,0.00922026]
[1745237105510,1.22787,1628.8,1628.7,40.80922026]
[1745237105702,6.18657,1628.8,1628.7,40.80922026]
[1745237105902,6.18657,1628.8,1628.7,0.00922026]
[1745237106106,1.22809,1628.5,1628.4,3.2078]
[1745237106401,1.22816,1628.5,1628.4,42.02816]
[1745237106798,2.97906,1628.5,1628.4,40.8]
[1745237108311,2.97906,1628.5,1628.4,42.02817]
[1745237108809,2.97906,1628.5,1628.4,44.55677]
[1745237110108,1.7509,1628.5,1628.4,44.55677]
[1745237110507,8.27582026,1628.6,1628.5,1.22809]
[1745237110706,9.10112026,1628.6,1628.5,2.88949]
[1745237111108,7.39302026,1628.6,1628.5,2.88949]
[1745237111310,3.21702026,1628.6,1628.5,2.88949]
[1745237111810,0.00922026,1628.6,1628.5,2.88949]
[1745237112111,0.00922026,1628.6,1628.5,12.24329]
[1745237116002,2.6e-07,1628.6,1628.5,12.24329]
[1745237116309,2.6e-07,1628.6,1628.5,17.24329]
[1745237116501,2.6e-07,1628.6,1628.5,21.41929]
[1745237117313,2.6e-07,1628.6,1628.5,15.27329]
[1745237118813,2.6e-07,1628.6,1628.5,6.09729]
[1745237119217,2.6e-07,1628.6,1628.5,12.24329]
[1745237123113,2.6e-07,1628.6,1628.5,6.09729]
[1745237123917,2.6e-07,1628.6,1628.5,2.88949]
[1745237124221,2.6e-07,1628.6,1628.5,1.22809]
[1745237124411,1.22802026,1628.6,1628.5,1.22809]
[1745237125018,1.22809,1628.5,1628.4,42.04261]
[1745237125319,8.74139,1628.5,1628.4,42.04261]
[1745237125520,13.74139,1628.5,1628.4,42.04261]
[1745237126019,8.74139,1628.5,1628.4,42.04261]
[1745237128120,7.5133,1628.5,1628.4,42.04261]
[1745237128418,8.74139,1628.5,1628.4,42.04261]
[1745237132721,7.5133,1628.5,1628.4,42.04261]
[1745237135026,8.74139,1628.5,1628.4,42.04261]
[1745237136222,7.5133,1628.5,1628.4,42.04261]
[1745237139627,7.5133,1628.5,1628.4,42.02811]
[1745237141632,8.74139,1628.5,1628.4,42.02811]
[1745237142029,7.5133,1628.5,1628.4,42.02811]
[1745237143832,8.74139,1628.5,1628.4,42.02811]
[1745237145031,2.5341,1628.5,1628.4,42.02811]
[1745237145227,5.0132,1628.5,1628.4,42.02811]
[1745237145626,5.0132,1628.5,1628.4,43.77011]
[1745237146132,7.84709,1628.5,1628.4,42.02811]
[1745237146523,1.22817,1628.4,1628.3,0.00922026]
[1745237146729,3.63677,1628.4,1628.3,0.00922026]
[1745237146932,7.753,1628.4,1628.3,40.80922026]
[1745237147131,10.9608,1628.4,1628.3,0.00922026]
[1745237148236,17.1068,1628.4,1628.3,0.00922026]
[1745237149132,10.9608,1628.4,1628.3,0.00922026]
[1745237149829,8.92983,1628.4,1628.3,1.23747026]
[1745237150137,8.5522,1628.4,1628.3,3.88137026]
[1745237151628,3.2078,1628.4,1628.3,3.88137026]
[1745237152634,4.43597,1628.4,1628.3,3.88137026]
[1745237152836,3.2078,1628.4,1628.3,3.88137026]
[1745237153435,8.00035,1628.5,1628.4,1.22817]
[1745237153637,8.00035,1628.5,1628.4,2.89127]
[1745237153937,6.24135,1628.5,1628.4,2.89127]
[1745237154239,6.24135,1628.5,1628.4,1.6631]
[1745237154736,6.24135,1628.5,1628.4,2.89127]
[1745237155639,4.164,1628.5,1628.4,2.89127]
[1745237157435,5.39209,1628.5,1628.4,2.89127]
[1745237157938,5.39209,1628.5,1628.4,1.6631]
[1745237158140,7.14729,1628.5,1628.4,1.6631]
[1745237158334,7.14729,1628.5,1628.4,2.89127]
[1745237158832,5.39209,1628.5,1628.4,2.89127]
[1745237159143,4.164,1628.5,1628.4,2.89127]
[1745237164350,5.39209,1628.5,1628.4,2.89127]
[1745237166356,4.164,1628.5,1628.4,2.89127]
[1745237166854,5.39209,1628.5,1628.4,2.89127]
[1745237169558,1.22817,1628.4,1628.3,5.32101026]
[1745237169752,3.87577,1628.4,1628.3,2.11321026]
[1745237169953,4.73747,1628.4,1628.3,2.11321026]
[1745237171748,4.73747,1628.4,1628.3,3.81661026]
[1745237179757,4.73747,1628.4,1628.3,0.00922026]
[1745237179960,7.94527,1628.4,1628.3,0.00922026]
[1745237180467,8.04837606,1628.4,1628.3,0.00922026]
[1745237180672,13.04837606,1628.4,1628.3,0.00922026]
[1745237181170,1.22847,1628.0,1627.9,3.72308]
[1745237181469,1.22847,1628.0,1627.9,44.52308]
[1745237181669,1.22847,1628.0,1627.9,40.8]
[1745237181870,2.83267,1628.0,1627.9,40.8]
[1745237182968,2.83267,1628.0,1627.9,42.02855]
[1745237183560,2.83267,1628.0,1627.9,40.8]
[1745237183764,2.83267,1628.0,1627.9,42.02855]
[1745237184263,3.69117,1628.0,1627.9,42.02855]
[1745237184571,3.69117,1628.0,1627.9,40.8]
[1745237188472,3.69117,1628.0,1627.9,42.02855]
[1745237188671,3.69117,1628.0,1627.9,43.72885]
[1745237189064,3.69117,1628.0,1627.9,42.5003]
[1745237189872,3.69117,1628.0,1627.9,40.8]
[1745237195473,3.69117,1628.0,1627.9,42.5235]
[1745237204175,3.69117,1628.0,1627.9,43.75205]
[1745237204776,3.69117,1628.0,1627.9,42.5235]
[1745237213778,3.69117,1628.0,1627.9,40.8]
[1745237214380,1.22885,1627.5,1627.4,2.84288]
[1745237214583,1.22885,1627.5,1627.4,1.61398]
[1745237214784,1.22885,1627.5,1627.4,43.6429]
[1745237214981,2.07815,1627.5,1627.4,42.41398]
[1745237215886,4.57705,1627.5,1627.4,42.41398]
[1745237216779,4.57705,1627.5,1627.4,1.61398]
[1745237224790,1.22892,1627.4,1627.3,42.47732026]
[1745237224996,5.38892,1627.4,1627.3,42.47732026]
[1745237226286,7.08952,1627.4,1627.3,42.47732026]
[1745237226687,10.29732,1627.4,1627.3,42.47732026]
[1745237226889,10.29732,1627.4,1627.3,1.67732026]
[1745237227088,10.29732,1627.4,1627.3,0.00922026]
[1745237227295,14.51672585,1627.4,1627.3,0.00922026]
[1745237228094,1.22932,1626.9,1626.8,1.22935]
[1745237228499,1.22932,1626.9,1626.8,42.02935]
[1745237229497,1.22932,1626.9,1626.8,43.69235]
[1745237230596,1.22932,1626.9,1626.8,42.463]
[1745237230997,4.16,1627.0,1626.9,1.2293]
[1745237231295,5.38923,1627.0,1626.9,2.9115]
[1745237231604,5.38923,1627.0,1626.9,1.6822]
[1745237232894,5.38923,1627.0,1626.9,2.9115]
[1745237233094,7.13675,1627.2,1626.9,9.75546]
[1745237233095,3.2078,1627.2,1626.9,9.75546]
[1745237233399,3.2078,1627.2,1627.1,1.22915]
[1745237233600,4.161,1627.3,1627.2,1.22908]
[1745237233803,4.161,1627.5,1627.4,1.22888]
[1745237234194,1.23802026,1627.6,1627.5,1.22885]
[1745237234392,1.23802026,1627.6,1627.5,43.75305]
[1745237234705,0.00922026,1627.6,1627.5,43.75305]
[1745237235002,1.23799026,1627.6,1627.5,43.75305]
[1745237235199,1.23799026,1627.6,1627.5,49.89905]
[1745237236089,0.00922026,1627.6,1627.5,53.10685]
[1745237236288,4.96603,1628.1,1628.0,1.22847]
[1745237236495,4.96603,1628.1,1627.6,6.14376]
[1745237236496,4.16,1628.2,1628.1,1.2284]
[1745237236801,19.49756225,1628.3,1628.1,1.2284]
[1745237236802,12.17353225,1628.3,1628.2,1.22832]
[1745237237100,12.17353225,1628.3,1628.2,42.86732]
[1745237237401,12.17353225,1628.3,1628.2,49.58632]
[1745237238103,12.17353225,1628.3,1628.2,55.73232]
[1745237240102,3.26388026,1628.4,1628.3,1.22825]
[1745237240603,3.26388026,1628.4,1628.3,2.95085]
[1745237240799,3.26388026,1628.4,1628.3,43.75085]
[1745237242399,3.26388026,1628.4,1628.3,46.95865]
[1745237242607,4.159,1628.8,1628.7,1.22794]
[1745237242995,1.22781,1628.9,1628.8,1.22786]
[1745237243506,7.01677,1629.0,1628.8,1.22786]
[1745237243699,7.01677,1629.0,1628.9,1.6709]
[1745237244506,5.789,1629.0,1628.9,2.89869]
[1745237244710,4.159,1629.0,1628.9,2.89869]
[1745237245206,10.305,1629.0,1628.9,2.89869]
[1745237246603,11.53272,1629.0,1628.9,1.6709]
[1745237246803,10.305,1629.0,1628.9,2.89869]
[1745237247201,0.83510053,1629.0,1628.9,11.10649]
[1745237247911,5.3e-07,1629.0,1628.9,11.10649]
[1745237248103,0.00922026,1629.1,1629.0,1.22772]
[1745237248407,0.00922026,1629.1,1629.0,7.07652]
[1745237248604,2.6e-07,1629.1,1629.0,53.72172]
[1745237249000,2.6e-07,1629.1,1629.0,59.60572]
[1745237249200,2.6e-07,1629.1,1629.0,65.75172]
[1745237250311,13.40077225,1629.7,1629.0,65.75172]
[1745237250312,13.40075225,1629.7,1629.1,3.06911]
[1745237250608,13.94853225,1629.7,1629.4,1.22738]
[1745237250807,1.775,1629.6,1629.4,1.22738]
[1745237251007,1.775,1629.6,1629.4,2.96768]
[1745237251209,7.921,1629.6,1629.4,2.96768]
[1745237251415,7.921,1629.6,1629.5,1.22734]
[1745237251612,7.921,1629.6,1629.5,2.96764]
[1745237252107,7.921,1629.6,1629.5,4.43514]
[1745237252897,6.146,1629.6,1629.5,45.23514]
[1745237253496,6.146,1629.6,1629.5,46.90724]
[1745237254102,6.146,1629.6,1629.5,40.8]
[1745237254299,7.37327,1629.6,1629.5,40.8]
[1745237254504,9.93937,1629.6,1629.5,40.8]
[1745237255708,13.7121,1629.6,1629.3,3.21702026]
[1745237255917,3.72501,1629.5,1629.3,4.44451026]
[1745237256108,1.6314,1629.4,1629.3,4.44451026]
[1745237256305,7.0122,1629.5,1629.4,1.22742]
[1745237256508,6.146,1629.5,1629.4,2.98582]
[1745237256716,6.146,1629.5,1629.4,49.65702]
[1745237257019,6.146,1629.5,1629.4,44.65702]
[1745237257318,7.87873,1629.8,1629.6,1.22724]
[1745237257520,1.6314,1629.7,1629.6,1.22724]
[1745237257820,1.6314,1629.7,1629.6,2.98564]
[1745237258118,7.7774,1629.7,1629.6,2.98564]
[1745237258822,1.22727,1629.6,1629.5,3.2078]
[1745237259005,1.22734,1629.5,1629.4,40.8]
[1745237259210,5.38034,1629.5,1629.4,40.8]
[1745237259409,13.58814,1629.5,1629.4,40.8]
[1745237259617,18.19923,1629.5,1628.9,3.2078]
[1745237259919,1.22772,1629.0,1628.9,3.2078]
[1745237260121,7.37372,1629.0,1628.9,45.23559]
[1745237260623,9.96412,1629.0,1628.9,40.8]
[1745237261008,13.17192,1629.0,1628.9,40.8]
[1745237261209,3.81812,1629.0,1628.9,40.8]
[1745237262713,2.5904,1629.0,1628.9,42.02779]
[1745237263121,8.7364,1629.0,1628.9,43.76629]
[1745237263807,7.0142,1629.0,1628.9,43.76629]
[1745237264216,5.89032026,1629.1,1628.9,42.5385]
[1745237264419,5.89032026,1629.1,1629.0,2.96622]
[1745237264613,0.00922026,1629.1,1629.0,6.17402]
[1745237265114,7.38286026,1629.1,1629.0,6.17402]
[1745237265314,7.85942026,1629.1,1629.0,4.43552]
[1745237265514,9.08706026,1629.1,1629.0,4.43552]
[1745237266020,9.08706026,1629.1,1629.0,3.2078]
[1745237267015,1.22772,1629.0,1628.9,40.8]
[1745237267211,2.93192,1629.0,1628.9,40.8]
[1745237267422,7.08492,1629.0,1628.9,40.8]
[1745237268824,5.8572,1629.0,1628.9,42.02779]
[1745237269223,6.146,1629.0,1628.9,42.02779]
[1745237269523,6.146,1629.0,1628.9,47.88569]
[1745237270222,7.7911,1629.0,1628.9,45.23559]
[1745237270723,7.7911,1629.0,1628.9,47.01089]
[1745237271124,9.01882,1629.0,1628.9,47.01089]
[1745237271525,9.01882,1629.0,1628.9,44.0078]
[1745237271823,9.01882,1629.0,1628.9,40.8]
[1745237272216,7.7911,1629.0,1628.9,42.02779]
[1745237272416,9.01882,1629.0,1628.9,43.68039]
[1745237272824,7.7911,1629.0,1628.9,43.68039]
[1745237273227,9.01882,1629.0,1628.9,43.68039]
[1745237273423,7.7911,1629.0,1628.9,43.68039]
[1745237273825,6.146,1629.0,1628.9,43.68039]
[1745237274124,7.37372,1629.0,1628.9,43.68039]
[1745237274322,9.05042,1629.0,1628.9,46.88819]
[1745237274625,7.8227,1629.0,1628.9,46.88819]
[1745237275020,6.146,1629.0,1628.9,46.88819]
[1745237278221,1.74962026,1629.1,1629.0,1.22772]
[1745237278521,1.74962026,1629.1,1629.0,3.80792]
[1745237278729,0.8367,1629.3,1629.2,1.22757]
[1745237279127,6.9827,1629.3,1629.2,1.22757]
[1745237281227,9.86329,1629.3,1629.2,1.22757]
[1745237281531,8.6358,1629.3,1629.2,1.22757]
[1745237281924,6.9827,1629.3,1629.2,1.22757]
[1745237282331,6.146,1629.3,1629.2,1.22757]
[1745237282534,8.64,1629.3,1629.2,1.22757]
[1745237283534,1.22757,1629.2,1629.1,6.19429]
[1745237283833,2.89887,1629.2,1629.1,4.43539]
[1745237284025,3.71537,1629.2,1629.1,4.43539]
[1745237284225,9.86137,1629.2,1629.1,4.43539]
[1745237284531,6.146,1629.2,1629.1,4.43539]
[1745237284730,6.146,1629.2,1629.1,6.17579]
[1745237285221,6.146,1629.4,1629.3,1.22749]
[1745237285833,7.7663,1629.4,1629.3,1.22749]
[1745237287131,6.146,1629.4,1629.3,1.22749]
[1745237287335,6.146,1629.4,1629.3,5.27119]
[1745237287726,6.146,1629.4,1629.3,6.90239]
[1745237289133,0.8592,1629.6,1629.5,1.22734]
[1745237289431,2.05375,1629.7,1629.4,1.719]
[1745237289733,0.8265,1629.7,1629.6,1.22727]
[1745237289929,2.481,1629.7,1629.6,1.22727]
[1745237290123,9.85419,1629.7,1629.6,1.22727]
[1745237290535,8.627,1629.7,1629.6,1.22727]
[1745237290729,6.146,1629.7,1629.6,6.22727]
[1745237290922,6.146,1629.7,1629.6,8.82447]
[1745237291122,13.04943225,1630.2,1630.1,1.22689]
[1745237291329,15.93074225,1630.2,1630.1,1.22689]
[1745237291530,15.93074225,1630.2,1630.0,1.23613026]
[1745237291727,1.22709,1629.9,1629.6,44.0078]
[1745237291938,0.8909,1629.8,1629.7,1.22719]
[1745237292132,0.8909,1629.8,1629.7,2.90159]
[1745237292523,0.8909,1629.8,1629.7,1.22719]
[1745237293241,8.7681,1629.8,1629.7,1.22719]
[1745237295329,9.588,1629.8,1629.7,1.22719]
[1745237296137,10.81511,1629.8,1629.7,1.22719]
[1745237296339,9.588,1629.8,1629.7,1.22719]
[1745237296633,10.81511,1629.8,1629.7,1.22719]
[1745237297242,1.22719,1629.7,1629.6,45.24426026]
[1745237297536,1.7694,1629.7,1629.6,45.24426026]
[1745237298236,7.9154,1629.7,1629.6,46.98396026]
[1745237299132,9.14259,1629.7,1629.6,40.80922026]
[1745237299329,7.9154,1629.7,1629.6,42.03649026]
[1745237299533,6.146,1629.7,1629.6,45.24429026]
[1745237299932,6.146,1629.7,1629.6,46.98399026]
[1745237300230,0.8909,1629.8,1629.7,1.22719]
[1745237300433,3.4449,1629.8,1629.7,1.22719]
[1745237301141,9.5909,1629.8,1629.7,1.22719]
[1745237301536,9.5909,1629.8,1629.7,2.86479]
[1745237303143,8.7259,1629.8,1629.7,2.86479]
[1745237304840,6.146,1629.8,1629.7,2.86479]
[1745237305143,6.146,1629.8,1629.7,7.86479]
[1745237305329,0.00922026,1629.9,1629.8,1.22711]
[1745237305532,1.22676,1630.3,1630.2,1.22677]
[1745237305730,3.75566,1630.3,1630.2,1.22677]
[1745237305934,1.22685,1630.2,1630.1,1.22683]
[1745237306242,2.92665,1630.2,1630.1,1.22683]
[1745237306739,1.6998,1630.2,1630.1,1.22683]
[1745237306944,1.6998,1630.2,1630.0,1.22691]
[1745237307140,2.07449,1630.1,1630.0,1.22691]
[1745237307340,1.22696,1630.0,1629.9,1.22701]
[1745237307642,2.98246,1630.0,1629.9,1.22701]
[1745237307843,1.22707,1629.9,1629.8,1.22705]
[1745237308045,1.22707,1629.9,1629.7,4.43497]
[1745237308046,1.22711,1629.8,1629.7,4.43497]
[1745237308247,1.22719,1629.7,1629.6,40.80922026]
[1745237308542,1.22742,1629.4,1629.3,3.2078]
[1745237308944,1.22742,1629.4,1629.3,45.23524]
[1745237309144,7.37342,1629.4,1629.3,40.8]
[1745237309343,1.22756,1629.3,1629.1,1.22758]
[1745237309542,2.03977,1629.2,1629.1,1.22758]
[1745237309849,2.03982,1629.2,1629.0,9.44172273]
[1745237310145,2.88674,1629.1,1629.0,9.44172273]
[1745237310335,2.88674,1629.1,1629.0,49.01405273]
[1745237310944,6.146,1629.2,1629.1,1.22764]
[1745237311244,1.6591,1629.4,1629.3,1.22749]
[1745237313146,7.8051,1629.4,1629.3,1.22749]
[1745237315645,6.146,1629.4,1629.3,1.22749]
[1745237315849,1.22723,1629.7,1629.3,5.8401]
[1745237316151,9.06953,1629.7,1629.6,1.22727]
[1745237316450,7.8423,1629.7,1629.6,1.22727]
[1745237316648,7.8423,1629.7,1629.5,1.22731]
[1745237316952,8.10665,1629.6,1629.2,5.884]
[1745237317153,1.22749,1629.3,1629.2,1.22753]
[1745237318039,6.146,1629.3,1629.0,57.86034273]
[1745237318238,2.4355,1629.2,1629.1,1.22764]
[1745237318642,6.146,1629.3,1629.2,1.22757]
[1745237319149,7.37349,1629.3,1629.2,1.22757]
[1745237319644,7.37349,1629.3,1629.0,46.58622026]
[1745237319645,8.7322,1629.3,1629.0,43.37842026]
[1745237319950,1.22764,1629.1,1629.0,42.03689026]
[1745237320252,7.37364,1629.1,1629.0,42.03689026]
[1745237320647,7.37364,1629.1,1629.0,40.80922026]
[1745237320849,11.59464,1629.1,1629.0,40.80922026]
[1745237321149,11.59464,1629.1,1629.0,42.03694026]
[1745237321350,13.28934,1629.1,1629.0,42.03694026]
[1745237321551,12.0617,1629.1,1629.0,42.03694026]
[1745237321941,6.146,1629.1,1629.0,42.03694026]
[1745237323153,7.8495,1629.1,1629.0,42.03694026]
[1745237323953,9.07714,1629.1,1629.0,42.03694026]
[1745237325351,9.07714,1629.1,1629.0,40.80922026]
[1745237325554,9.07714,1629.1,1629.0,42.03694026]
[1745237325754,9.07714,1629.1,1629.0,40.80922026]
[1745237326253,9.07714,1629.1,1629.0,42.03694026]
[1745237330750,9.07714,1629.1,1629.0,40.80922026]
[1745237331354,9.07714,1629.1,1629.0,42.03694026]
[1745237333260,9.07714,1629.1,1629.0,40.80922026]
[1745237336748,9.07714,1629.1,1629.0,0.00922026]
[1745237337462,9.07714,1629.1,1629.0,1.23694026]
[1745237338654,9.07714,1629.1,1629.0,1.71542026]
[1745237338954,9.07714,1629.1,1629.0,2.94314026]
[1745237339266,9.07714,1629.1,1629.0,1.71542026]
[1745237339758,9.07714,1629.1,1629.0,0.00922026]
[1745237341163,2.93114,1629.1,1629.0,0.00922026]
[1745237342168,2.93114,1629.1,1629.0,1.23694026]
[1745237342353,2.93114,1629.1,1629.0,2.94684026]
[1745237342552,8.3203,1629.3,1629.2,1.22757]
[1745237342553,6.34001,1629.3,1629.2,1.22757]
[1745237342763,8.02291,1629.3,1629.2,1.22757]
[1745237342954,1.22757,1629.2,1629.1,3.80738]
[1745237343157,2.91047,1629.2,1629.1,44.60738]
[1745237343362,2.91047,1629.2,1629.1,40.8]
[1745237344159,9.05647,1629.2,1629.1,42.02764]
[1745237344465,6.146,1629.2,1629.1,45.23544]
[1745237344762,6.146,1629.2,1629.1,52.80994]
[1745237344961,6.146,1629.2,1629.1,53.61744]
[1745237345162,14.04039625,1629.5,1629.4,1.22742]
[1745237345660,3.82517,1629.5,1629.4,1.22742]
[1745237345863,1.22742,1629.4,1629.3,2.95508]
[1745237346058,2.99922,1629.4,1629.3,2.95508]
[1745237346362,1.7718,1629.4,1629.3,2.95508]
[1745237346662,8.19937,1629.5,1629.3,2.95508]
[1745237346855,8.19937,1629.5,1629.4,1.22742]
[1745237347055,8.19937,1629.5,1629.4,3.75282]
[1745237347056,9.93007,1629.5,1629.4,3.75282]
[1745237348065,8.7027,1629.5,1629.4,3.75282]
[1745237348359,6.146,1629.5,1629.4,3.75282]
[1745237348664,6.146,1629.5,1629.4,8.75282]
[1745237349363,5.11322026,1629.8,1629.7,1.22719]
[1745237349555,2.58332026,1629.8,1629.7,1.22719]
[1745237350060,8.72932026,1629.8,1629.7,1.22719]
[1745237351268,3.71722027,1629.8,1629.7,4.43499]
[1745237351567,3.71722027,1629.8,1629.7,5.31209]
[1745237354265,4.94433027,1629.8,1629.7,0.8771]
[1745237354467,7.54183027,1629.8,1629.7,0.8771]
[1745237354664,7.54183027,1629.8,1629.6,2.89411]
[1745237354863,1.7162,1629.7,1629.6,2.89411]
[1745237355062,7.8622,1629.7,1629.6,2.89411]
[1745237355269,6.146,1629.7,1629.6,2.89411]
[1745237356171,1.6282,1629.8,1629.7,1.22719]
[1745237356480,6.146,1629.9,1629.8,1.22711]
[1745237356783,6.146,1629.9,1629.8,3.77911]
[1745237357278,6.146,1629.9,1629.8,8.77911]
[1745237357493,6.146,1629.9,1629.8,3.77911]
[1745237357979,6.146,1629.9,1629.8,4.2781202]
[1745237358180,7.96373,1630.2,1630.0,1.2269]
[1745237358381,2.85509,1630.1,1630.0,4.4347]
[1745237358582,2.85509,1630.1,1630.0,1.2269]
[1745237358880,1.22696,1630.0,1629.9,2.92570026]
[1745237359080,5.1087,1630.2,1630.1,1.22689]
[1745237359281,8.01796,1630.2,1630.1,42.02689]
[1745237359774,8.01796,1630.2,1630.1,40.8]
[1745237359977,8.01796,1630.2,1630.1,42.02689]
[1745237360178,14.16396,1630.2,1630.1,42.02689]
[1745237360879,9.93996,1630.2,1630.1,42.02689]
[1745237361180,9.93996,1630.2,1630.1,40.8]
[1745237361583,10.21522625,1630.6,1630.5,1.22659]
[1745237361983,15.09361625,1630.6,1630.5,1.22659]
[1745237362176,16.36122625,1630.6,1630.5,7.93239]
[1745237362376,21.23961625,1630.6,1630.5,2.93239]
[1745237362579,22.46612625,1630.6,1630.4,1.22664]
[1745237362780,6.52309,1630.5,1630.4,2.93244]